bitfinex/quotes_SOLUSD_20250717
["timestamp","ask_amount","ask_price","bid_price","bid_amount"]
[1752765512494,0.03,173.46,173.45,0.65]
[1752765513468,0.03,173.46,173.45,26.0]
[1752765513774,0.03,173.46,173.44,5.76560044]
[1752765513975,0.03,173.46,173.44,6.41560044]
[1752765514287,0.03,173.46,173.45,26.0]
[1752765514464,10.03,173.46,173.45,26.65]
[1752765514660,10.0,173.52,173.45,49.48449989]
[1752765514865,0.03,173.53,173.45,49.48449989]
[1752765514866,0.03,173.53,173.49,26.0]
[1752765515075,0.03,173.53,173.52,26.0]
[1752765515578,0.03,173.53,173.52,26.65]
[1752765516383,0.03,173.53,173.52,43.43468397]
[1752765516772,0.03,173.53,173.52,43.71856821]
[1752765516970,0.03,173.53,173.52,49.48159264]
[1752765517776,0.03,173.53,173.52,0.28388424]
[1752765517975,0.03,173.53,173.51,17.06856821]
[1752765518571,0.03,173.53,173.51,17.71856821]
[1752765518796,0.03,173.53,173.51,23.48190205]
[1752765518993,0.03,173.53,173.52,0.65]
[1752765519504,10.03,173.6,173.54,26.0]
[1752765519697,10.0,173.59,173.58,26.0]
[1752765519871,10.0,173.59,173.58,57.46]
[1752765520267,0.03,173.6,173.58,58.11]
[1752765520468,0.03,173.6,173.59,6.69403709]
[1752765521287,0.03,173.6,173.59,0.28333659]
[1752765521685,0.03,173.6,173.59,0.97333659]
[1752765521880,0.03,173.6,173.59,6.73403709]
[1752765522288,0.03,173.6,173.59,23.51872106]
[1752765525782,1e-08,173.6,173.59,23.51872106]
[1752765525977,1e-08,173.6,173.59,44.50313967]
[1752765526586,0.03,173.64,173.63,48.54405735]
[1752765526783,0.03,173.64,173.63,80.26702885]
[1752765526986,0.03,173.64,173.63,80.95702885]
[1752765527492,0.03,173.64,173.63,87.23151987]
[1752765528005,0.03,173.65,173.63,87.23151987]
[1752765528193,1e-08,173.65,173.64,29.75717499]
[1752765528381,1e-08,173.66,173.65,16.78468397]
[1752765528581,1e-08,173.66,173.65,61.2106907]
[1752765529210,1e-08,173.66,173.65,29.7906907]
[1752765529415,1e-08,173.66,173.65,61.2106907]
[1752765529988,1e-08,173.66,173.65,6.55729669]
[1752765530184,1e-08,173.66,173.65,31.42]
[1752765530996,1e-08,173.66,173.65,54.65339401]
[1752765531692,1e-08,173.66,173.65,53.96339401]
[1752765532015,1e-08,173.66,173.65,54.24619968]
[1752765534120,1e-08,173.66,173.65,31.70280567]
[1752765534324,1e-08,173.66,173.65,31.42]
[1752765534618,0.67000001,173.66,173.65,31.42]
[1752765534916,1e-08,173.66,173.65,31.42]
[1752765536116,10.67000001,173.66,173.65,31.42]
[1752765536618,10.0,173.64,173.61,31.4]
[1752765536799,10.0,173.64,173.63,26.0]
[1752765536996,10.0,173.65,173.64,26.0]
[1752765537415,10.67,173.65,173.64,26.0]
[1752765538415,10.0,173.61,173.6,31.4]
[1752765538613,0.67,173.61,173.6,31.4]
[1752765538823,10.67,173.61,173.6,31.4]
[1752765539006,10.0,173.61,173.6,31.4]
[1752765540607,10.67,173.61,173.6,31.4]
[1752765540823,10.0,173.64,173.63,26.0]
[1752765541029,10.00000001,173.66,173.65,26.0]
[1752765541327,1e-08,173.66,173.65,57.4]
[1752765541644,10.00000001,173.66,173.65,57.4]
[1752765542010,1e-08,173.66,173.65,57.4]
[1752765542427,1e-08,173.66,173.65,58.09]
[1752765542731,10.00000001,173.66,173.65,58.09]
[1752765543237,10.00000001,173.66,173.65,57.4]
[1752765543412,10.67000001,173.66,173.65,57.4]
[1752765543613,10.67000001,173.66,173.64,26.0]
[1752765543614,10.0,173.65,173.64,26.0]
[1752765543833,10.67,173.65,173.64,26.0]
[1752765544920,16.42871004,173.65,173.64,26.0]
[1752765545548,10.67,173.65,173.64,26.0]
[1752765546814,10.0,173.65,173.64,26.0]
[1752765547028,10.67,173.65,173.64,26.0]
[1752765547817,10.0,173.64,173.63,31.4]
[1752765548018,1e-08,173.66,173.65,26.0]
[1752765548239,1e-08,173.66,173.65,57.68280567]
[1752765548440,10.67000001,173.66,173.65,57.4]
[1752765548638,10.0,173.64,173.62,57.4]
[1752765548842,10.67,173.63,173.62,57.4]
[1752765549027,10.0,173.63,173.62,57.4]
[1752765549624,10.67,173.63,173.62,57.4]
[1752765550132,10.67,173.63,173.62,26.0]
[1752765550318,10.0,173.63,173.62,26.0]
[1752765550941,10.72,173.63,173.61,31.4]
[1752765551139,10.0,173.6,173.59,26.0]
[1752765551342,10.0,173.6,173.59,57.38]
[1752765551539,10.0,173.61,173.59,58.09]
[1752765552135,0.72,173.65,173.6,0.99325363]
[1752765552136,10.0,173.62,173.6,0.99325363]
[1752765552341,10.0,173.62,173.61,31.38]
[1752765554339,10.0,173.63,173.61,31.38]
[1752765554649,10.0,173.65,173.64,26.0]
[1752765554845,10.0,173.65,173.64,57.38]
[1752765555227,10.00000001,173.66,173.64,58.09]
[1752765555446,10.0,173.65,173.64,57.38]
[1752765555623,10.00000001,173.66,173.64,57.38]
[1752765555828,10.0,173.65,173.64,57.38]
[1752765556530,1e-08,173.66,173.64,63.84896766]
[1752765556749,10.0,173.65,173.64,58.09]
[1752765557051,10.0,173.65,173.64,57.38]
[1752765557228,1e-08,173.66,173.64,63.84904169]
[1752765557229,10.00000001,173.66,173.64,63.84904169]
[1752765557423,10.00000001,173.66,173.65,0.99283898]
[1752765557424,1e-08,173.66,173.65,0.99283898]
[1752765557631,1e-08,173.66,173.65,17.77752295]
[1752765557838,0.1,173.67,173.66,16.78468397]
[1752765558032,0.03,173.73,173.69,26.0]
[1752765558240,0.03,173.73,173.72,26.0]
[1752765558427,0.03,173.73,173.72,57.38]
[1752765558821,0.03,173.73,173.72,58.09]
[1752765559024,0.03,173.73,173.72,80.63107356]
[1752765560061,0.03,173.73,173.72,79.92107356]
[1752765560267,0.03,173.73,173.72,57.38]
[1752765560437,10.03,173.73,173.72,57.38]
[1752765560953,0.75,173.73,173.72,57.38]
[1752765561146,10.0,173.71,173.7,26.0]
[1752765561334,10.0,173.71,173.7,57.36]
[1752765561538,10.0,173.71,173.7,31.36]
[1752765561932,10.0,173.7,173.65,16.78468397]
[1752765562128,10.0,173.68,173.66,31.36]
[1752765562323,10.0,173.67,173.66,31.36]
[1752765562732,10.0,173.7,173.69,26.0]
[1752765562931,10.0,173.71,173.69,31.36]
[1752765563754,10.0,173.7,173.69,31.36]
[1752765565060,10.72,173.7,173.69,31.36]
[1752765565734,10.0,173.69,173.68,31.36]
[1752765568148,10.0,173.7,173.68,31.36]
[1752765568463,10.0,173.71,173.7,26.0]
[1752765568677,10.0,173.71,173.7,57.34]
[1752765569233,10.0,173.72,173.7,64.08944365]
[1752765569672,10.0,173.71,173.7,64.08944365]
[1752765570160,10.0,173.72,173.7,63.37944365]
[1752765570459,10.0,173.71,173.7,63.37944365]
[1752765570656,10.0,173.72,173.7,63.37944365]
[1752765571035,10.0,173.72,173.7,64.08944365]
[1752765571261,10.0,173.72,173.71,23.25140494]
[1752765571453,10.03,173.73,173.71,23.25140494]
[1752765571648,10.03,173.73,173.72,31.34]
[1752765572265,0.03,173.73,173.72,31.34]
[1752765572637,0.03,173.73,173.72,32.05]
[1752765572844,10.03,173.73,173.72,31.34]
[1752765573551,10.75,173.73,173.72,31.34]
[1752765574164,10.75,173.73,173.72,26.0]
[1752765574867,10.0,173.72,173.71,31.34]
[1752765575170,0.03,173.73,173.71,37.80672097]
[1752765575466,10.0,173.72,173.71,32.05]
[1752765575644,10.0,173.72,173.71,31.34]
[1752765575841,10.0,173.71,173.69,26.0]
[1752765576154,10.0,173.71,173.7,31.34]
[1752765576348,10.0,173.69,173.68,0.2824896]
[1752765576571,10.0,173.7,173.68,31.34]
[1752765576739,10.0,173.69,173.68,31.34]
[1752765577066,10.72,173.69,173.64,0.06]
[1752765577364,10.0,173.66,173.65,31.32]
[1752765578370,10.0,173.66,173.65,32.03]
[1752765578562,10.0,173.66,173.65,31.32]
[1752765580751,10.7,173.66,173.65,31.32]
[1752765581156,10.0,173.66,173.65,31.32]
[1752765582371,10.7,173.66,173.65,31.32]
[1752765582570,10.0,173.66,173.65,31.32]
[1752765583679,10.0,173.66,173.65,57.32]
[1752765585880,10.0,173.66,173.65,63.07871004]
[1752765586073,10.0,173.66,173.65,80.53339401]
[1752765586975,10.7,173.66,173.65,31.32]
[1752765588160,10.0,173.66,173.65,31.32]
[1752765588573,10.0,173.65,173.64,0.06]
[1752765588772,10.7,173.65,173.64,0.06]
[1752765589482,19.57243875,173.65,173.64,0.06]
[1752765589670,19.57243875,173.65,173.64,26.06]
[1752765589874,19.57243875,173.65,173.64,0.06]
[1752765590485,25.33114879,173.65,173.64,0.06]
[1752765591564,10.0,173.63,173.62,26.0]
[1752765591764,11.41992167,173.63,173.62,26.0]
[1752765592391,10.7,173.63,173.62,26.0]
[1752765592586,16.45937338,173.63,173.62,26.0]
[1752765594563,15.75937338,173.63,173.62,26.0]
[1752765594961,10.0,173.63,173.62,26.0]
[1752765595164,16.45937338,173.63,173.62,26.0]
[1752765595885,10.0,173.58,173.57,57.36]
[1752765596088,10.0,173.58,173.57,31.36]
[1752765596774,16.46103237,173.58,173.57,0.06]
[1752765598993,24.27203237,173.58,173.57,0.06]
[1752765599978,41.05671634,173.58,173.57,1e-08]
[1752765600184,41.77684538,173.58,173.57,1e-08]
[1752765600968,24.99216141,173.58,173.57,1e-08]
[1752765601178,24.27203237,173.58,173.57,1e-08]
[1752765601872,10.0,173.56,173.55,0.06]
[1752765602073,10.0,173.48,173.46,0.2]
[1752765602272,10.0,173.47,173.46,0.2]
[1752765602481,16.46468553,173.47,173.46,0.2]
[1752765603479,15.46468553,173.47,173.46,0.2]
[1752765604287,9.0,173.47,173.46,0.2]
[1752765604679,9.7,173.47,173.46,0.2]
[1752765605192,9.0,173.47,173.46,0.2]
[1752765606302,9.0,173.47,173.46,0.87]
[1752765606794,8.4585,173.54,173.46,0.87]
[1752765606795,9.0,173.49,173.48,26.0]
[1752765606997,9.0,173.49,173.48,57.3]
[1752765607174,9.0,173.5,173.48,57.97]
[1752765607373,9.0,173.5,173.49,0.67]
[1752765607699,9.0,173.52,173.49,0.67]
[1752765607882,9.0,173.52,173.49,17.73881734]
[1752765608087,9.0,173.51,173.5,0.67]
[1752765608293,9.0,173.52,173.5,0.67]
[1752765608482,9.0,173.52,173.49,17.06881734]
[1752765608682,9.0,173.5,173.49,17.06881734]
[1752765608894,9.0,173.53,173.49,22.83280979]
[1752765609202,9.0,173.52,173.51,16.78468397]
[1752765609376,9.0,173.53,173.51,48.75468397]
[1752765609600,9.0,173.52,173.51,48.08468397]
[1752765609784,9.0,173.54,173.53,26.0]
[1752765610107,9.0,173.55,173.54,26.0]
[1752765610296,9.0,173.56,173.54,26.67]
[1752765610605,9.0,173.56,173.55,31.3]
[1752765611201,9.0,173.56,173.55,32.02]
[1752765611398,9.0,173.57,173.55,32.02]
[1752765611575,9.0,173.56,173.55,32.02]
[1752765612575,9.0,173.57,173.55,32.02]
[1752765612776,9.0,173.56,173.55,31.3]
[1752765613378,9.0,173.56,173.55,32.02]
[1752765614104,9.0,173.57,173.55,37.78199356]
[1752765614307,9.0,173.57,173.56,0.72]
[1752765614619,8.1622,173.63,173.57,26.0]
[1752765614620,9.0,173.58,173.57,26.0]
[1752765614793,9.0,173.59,173.58,26.0]
[1752765614979,9.0,173.59,173.58,58.0]
[1752765616531,9.0,173.59,173.58,57.28]
[1752765617297,9.0,173.59,173.58,58.0]
[1752765617495,9.0,173.6,173.58,63.76103237]
[1752765617805,9.0,173.6,173.59,0.72]
[1752765618709,9.0,173.62,173.61,26.0]
[1752765618914,9.0,173.62,173.61,58.0]
[1752765620037,9.0,173.63,173.61,58.0]
[1752765620225,9.0,173.64,173.62,1.00308773]
[1752765620538,9.0,173.64,173.63,58.0]
[1752765620731,9.0,173.65,173.63,58.0]
[1752765620917,9.0,173.64,173.63,57.28]
[1752765621225,9.0,173.65,173.63,57.28]
[1752765621523,9.0,173.65,173.64,0.72]
[1752765622315,9.0,173.66,173.64,0.72]
[1752765622516,9.0,173.66,173.65,31.98]
[1752765622824,9.03,173.67,173.65,32.26280567]
[1752765623138,9.03,173.67,173.65,31.54280567]
[1752765623139,9.0,173.66,173.65,31.54280567]
[1752765623444,9.0,173.66,173.65,32.26280567]
[1752765623647,9.0,173.66,173.65,31.98]
[1752765624933,0.03,173.67,173.65,31.98]
[1752765625142,9.0,173.66,173.65,31.26]
[1752765626328,0.03,173.67,173.65,31.98]
[1752765626631,9.0,173.66,173.65,31.98]
[1752765626832,9.03,173.67,173.65,31.98]
[1752765627044,9.0,173.66,173.65,31.98]
[1752765627239,9.0,173.66,173.65,31.26]
[1752765628421,9.66,173.66,173.65,31.26]
[1752765628626,9.66,173.66,173.63,2.99841097]
[1752765628826,9.0,173.64,173.63,2.99841097]
[1752765629634,9.0,173.64,173.63,0.09063341]
[1752765630844,9.0,173.64,173.63,0.81063341]
[1752765631353,9.0,173.66,173.65,26.0]
[1752765631529,0.03,173.67,173.65,57.24]
[1752765631724,9.03,173.67,173.66,0.72]
[1752765631932,0.03,173.67,173.66,0.72]
[1752765632430,9.03,173.67,173.66,0.72]
[1752765632626,0.03,173.67,173.66,0.72]
[1752765633049,9.03,173.67,173.66,0.72]
[1752765633748,0.03,173.67,173.66,6.47837844]
[1752765634443,9.03,173.67,173.66,0.72]
[1752765634633,9.0,173.66,173.65,26.0]
[1752765634945,9.0,173.66,173.65,57.22]
[1752765635347,9.0,173.66,173.65,63.98151571]
[1752765635856,9.0,173.66,173.65,57.94]
[1752765636063,9.0,173.66,173.65,57.22]
[1752765636652,9.66,173.66,173.65,57.22]
[1752765636855,9.66,173.66,173.63,0.09063341]
[1752765637063,9.0,173.64,173.63,0.09063341]
[1752765637652,9.66,173.64,173.63,0.09063341]
[1752765639558,9.0,173.64,173.63,0.09063341]
[1752765640052,9.66,173.64,173.63,0.09063341]
[1752765641634,9.0,173.64,173.63,0.09063341]
[1752765642038,9.7,173.64,173.63,0.09063341]
[1752765642455,9.0,173.64,173.63,0.09063341]
[1752765642960,9.0,173.64,173.63,31.29063341]
[1752765643333,9.0,173.64,173.63,31.97063341]
[1752765643734,9.0,173.64,173.63,31.29063341]
[1752765644136,9.0,173.64,173.63,31.97063341]
[1752765644349,9.03,173.66,173.65,26.0]
[1752765644664,9.03,173.66,173.65,57.88]
[1752765645231,0.03,173.66,173.65,57.88]
[1752765645630,0.03,173.66,173.65,63.63871004]
[1752765646279,0.03,173.66,173.65,80.70619968]
[1752765647577,0.03,173.66,173.65,86.9806907]
[1752765647754,0.03,173.66,173.65,87.15754371]
[1752765647949,0.03,173.67,173.65,98.17305269]
[1752765648156,0.03,173.67,173.66,23.73917499]
[1752765648366,0.03,173.73,173.72,26.0]
[1752765648549,0.03,173.73,173.72,57.2]
[1752765648868,9.03,173.73,173.72,57.37541128]
[1752765649453,0.03,173.73,173.72,58.05541128]
[1752765649695,0.03,173.73,173.72,57.37541128]
[1752765650056,9.03,173.73,173.72,57.37541128]
[1752765650242,9.03,173.73,173.72,26.17541128]
[1752765650444,9.73,173.73,173.72,57.35541128]
[1752765651356,9.73,173.73,173.72,0.17541128]
[1752765654780,9.03,173.73,173.72,0.17541128]
[1752765655359,0.03,173.73,173.72,0.85541128]
[1752765655551,9.03,173.73,173.72,0.85541128]
[1752765655751,0.03,173.73,173.72,0.85541128]
[1752765656050,0.03,173.73,173.72,6.61180087]
[1752765656948,9.03,173.73,173.72,6.61180087]
[1752765657577,0.03,173.73,173.72,23.39648484]
[1752765657873,9.03,173.73,173.72,23.39648484]
[1752765658076,0.03,173.73,173.72,23.39648484]
[1752765658370,9.03,173.73,173.72,54.55648484]
[1752765658575,0.03,173.73,173.72,54.55648484]
[1752765658961,9.03,173.73,173.72,54.55648484]
[1752765659160,0.03,173.73,173.72,54.55648484]
[1752765659364,9.03,173.73,173.72,54.55648484]
[1752765659577,9.03,173.73,173.72,31.33541128]
[1752765659973,9.73,173.73,173.72,31.33541128]
[1752765660278,9.03,173.73,173.72,31.33541128]
[1752765661573,9.73,173.73,173.72,31.33541128]
[1752765661883,9.03,173.73,173.72,31.33541128]
[1752765662173,9.73,173.73,173.72,31.33541128]
[1752765662959,9.03,173.73,173.72,31.33541128]
[1752765663159,9.73,173.73,173.72,31.33541128]
[1752765663366,17.14825825,173.73,173.72,0.17541128]
[1752765663549,17.7493,173.73,173.72,0.17541128]
[1752765664352,10.6922,173.73,173.72,0.17541128]
[1752765664660,9.03,173.73,173.72,0.17541128]
[1752765665986,9.73,173.73,173.72,0.17541128]
[1752765667988,9.73,173.73,173.72,26.17541128]
[1752765668192,15.48605825,173.73,173.72,26.17541128]
[1752765668394,15.48605825,173.73,173.72,0.17541128]
[1752765668891,23.71285825,173.73,173.72,0.17541128]
[1752765669772,9.0,173.66,173.65,31.18]
[1752765669961,9.7,173.66,173.65,0.06]
[1752765671176,9.7,173.66,173.65,26.06]
[1752765671681,10.4197973,173.66,173.65,26.06]
[1752765672372,16.17817574,173.66,173.65,0.06]
[1752765672571,15.45837844,173.66,173.65,0.06]
[1752765672765,9.7,173.66,173.65,0.06]
[1752765672969,9.0,173.66,173.65,26.06]
[1752765674672,9.0,173.66,173.65,31.18]
[1752765675184,9.0,173.66,173.65,37.61871004]
[1752765675562,9.0,173.69,173.68,26.0]
[1752765675792,9.0,173.69,173.68,57.8]
[1752765676015,9.0,173.7,173.68,57.8]
[1752765676225,9.0,173.69,173.68,57.12]
[1752765679077,9.69,173.69,173.68,57.12]
[1752765679728,9.0,173.69,173.68,57.12]
[1752765681599,9.69,173.69,173.65,0.06]
[1752765681883,9.0,173.67,173.66,26.0]
[1752765682195,9.0,173.66,173.65,0.06]
[1752765682410,9.0,173.66,173.65,26.06]
[1752765682705,9.69,173.66,173.65,26.06]
[1752765682906,9.0,173.66,173.65,26.06]
[1752765683596,9.0,173.66,173.65,0.06]
[1752765683801,9.69,173.66,173.65,0.06]
[1752765684190,9.0,173.66,173.65,26.06]
[1752765685283,9.69,173.66,173.65,26.06]
[1752765685513,15.44837844,173.66,173.65,0.06]
[1752765686219,24.731694,173.66,173.65,0.06]
[1752765688891,9.69,173.66,173.65,0.06]
[1752765689405,24.731694,173.66,173.65,0.06]
[1752765691407,25.4514913,173.66,173.65,0.06]
[1752765692218,16.16817574,173.66,173.65,0.06]
[1752765692427,25.4514913,173.66,173.65,0.06]
[1752765692987,16.16817574,173.66,173.65,0.06]
[1752765693287,10.4097973,173.66,173.65,0.06]
[1752765693511,25.4514913,173.66,173.65,0.06]
[1752765695240,73.29617527,173.66,173.65,1e-08]
[1752765695444,83.29617527,173.66,173.65,1e-08]
[1752765696710,73.29617527,173.66,173.65,1e-08]
[1752765696902,83.29617527,173.66,173.65,1e-08]
[1752765697335,73.29617527,173.66,173.65,1e-08]
[1752765697834,10.4097973,173.66,173.65,1e-08]
[1752765698021,9.69,173.66,173.65,1e-08]
[1752765698344,25.4514913,173.66,173.65,1e-08]
[1752765698836,16.16817574,173.66,173.65,1e-08]
[1752765699211,15.47817574,173.66,173.65,1e-08]
[1752765699613,16.16817574,173.66,173.65,1e-08]
[1752765701432,9.7197973,173.66,173.65,1e-08]
[1752765701745,9.0,173.66,173.65,10.00331557]
[1752765703324,9.0,173.66,173.65,1e-08]
[1752765703549,9.0,173.66,173.65,9.28331557]
[1752765704642,9.0,173.66,173.65,1e-08]
[1752765704943,9.7,173.66,173.65,1e-08]
[1752765705638,24.741694,173.66,173.65,1e-08]
[1752765705818,25.4614913,173.66,173.65,1e-08]
[1752765706018,31.9875913,173.66,173.65,1e-08]
[1752765707121,109.19227527,173.66,173.65,1e-08]
[1752765707443,119.19227527,173.66,173.65,1e-08]
[1752765707751,119.19227527,173.66,173.6,0.06]
[1752765707752,9.0,173.61,173.6,0.06]
[1752765707929,66.80800413,173.61,173.6,1e-08]
[1752765708129,66.80800413,173.61,173.5,31.74]
[1752765708130,9.0,173.51,173.5,31.74]
[1752765708345,9.0,173.51,173.5,31.02]
[1752765708533,9.0,173.5,173.49,9.28331556]
[1752765708843,9.0,173.5,173.49,26.0]
[1752765709046,9.0,173.49,173.48,10.00331556]
[1752765710066,9.0,173.49,173.48,0.72]
[1752765710265,9.0,173.49,173.48,10.00331556]
[1752765710567,9.0,173.49,173.48,10.17331556]
[1752765710740,9.0,173.5,173.48,10.00331556]
[1752765710944,9.0,173.51,173.5,26.0]
[1752765711158,9.0,173.51,173.5,67.02331556]
[1752765711355,9.0,173.51,173.5,26.72]
[1752765711565,9.0,173.48,173.47,0.06]
[1752765711948,9.0,173.48,173.47,26.06]
[1752765712141,9.0,173.48,173.47,0.06]
[1752765712344,35.76799953,173.48,173.47,0.06]
[1752765712562,36.48854368,173.48,173.47,0.06]
[1752765712746,42.25289691,173.48,173.47,0.06]
[1752765714454,42.25289691,173.48,173.47,1e-08]
[1752765714643,19.0,173.47,173.46,1e-08]
[1752765714845,81.83600062,173.47,173.46,1e-08]
[1752765715065,81.83600062,173.47,173.44,1e-08]
[1752765715066,27.42348397,173.45,173.44,1e-08]
[1752765715258,47.42746831,173.45,173.44,1e-08]
[1752765715454,48.12746831,173.45,173.44,1e-08]
[1752765715651,28.84415275,173.45,173.44,1e-08]
[1752765715854,59.86415275,173.45,173.44,1e-08]
[1752765716056,69.14746831,173.45,173.44,1e-08]
[1752765716771,79.14746831,173.45,173.44,1e-08]
[1752765717071,84.91281855,173.45,173.44,1e-08]
[1752765718060,41.68519953,173.41,173.4,0.06]
[1752765718258,73.40603454,173.41,173.4,0.06]
[1752765718569,84.10603454,173.41,173.4,1e-08]
[1752765718954,9.0,173.4,173.39,1e-08]
[1752765719168,25.78468397,173.38,173.37,1e-08]
[1752765719372,76.80895927,173.38,173.37,1e-08]
[1752765719546,79.12575927,173.38,173.37,1e-08]
[1752765719946,19.0,173.36,173.35,1e-08]
[1752765720170,60.02435847,173.36,173.35,1e-08]
[1752765720347,36.48904244,173.36,173.35,1e-08]
[1752765720551,50.72435847,173.36,173.35,1e-08]
[1752765720750,40.74104291,173.36,173.35,1e-08]
[1752765720964,9.72104291,173.36,173.35,10.00331557]
[1752765721169,9.0,173.36,173.35,10.00331557]
[1752765721457,9.0,173.36,173.35,41.83999118]
[1752765721458,7.66,173.36,173.35,41.83999118]
[1752765721855,7.66,173.36,173.35,0.72000001]
[1752765722058,7.66,173.36,173.35,9.28331557]
[1752765722963,7.66,173.42,173.38,31.7675956]
[1752765723278,7.66,173.42,173.41,35.28331556]
[1752765724184,7.66,173.43,173.42,26.0]
[1752765724486,7.66,173.44,173.43,26.0]
[1752765724686,7.66,173.44,173.43,35.28331556]
[1752765725364,7.66,173.44,173.43,9.28331556]
[1752765730184,7.66,173.44,173.43,35.28331556]
[1752765730383,7.66,173.44,173.43,9.28331556]
[1752765730883,7.66,173.44,173.41,26.0]
[1752765731064,7.66,173.44,173.43,9.28331556]
[1752765731264,7.66,173.44,173.43,40.28331556]
[1752765731458,7.66,173.44,173.43,46.04933066]
[1752765731657,7.66,173.44,173.43,40.28331556]
[1752765732473,7.66,173.44,173.43,46.04933066]
[1752765732672,7.66,173.46,173.45,26.0]
[1752765733061,7.66,173.46,173.45,35.28331556]
[1752765733382,7.66,173.47,173.45,41.0486658]
[1752765733586,7.66,173.47,173.46,9.28331556]
[1752765733788,7.66,173.48,173.46,18.56663112]
[1752765733966,0.72033654,173.53,173.46,18.56663112]
[1752765733967,7.66,173.5,173.49,26.0]
[1752765734162,7.66,173.5,173.49,35.28331556]
[1752765737591,7.66,173.5,173.49,41.04733654]
[1752765737768,7.66,173.51,173.49,41.04733654]
[1752765737970,7.66,173.51,173.5,40.24331556]
[1752765738907,7.66,173.51,173.5,30.96]
[1752765739211,7.66,173.51,173.5,40.24331556]
[1752765740219,7.66,173.55,173.53,26.0]
[1752765740509,7.66,173.55,173.54,40.24331556]
[1752765740724,7.66,173.56,173.54,40.24331556]
[1752765740915,7.66,173.57,173.55,9.28331556]
[1752765741144,7.66,173.57,173.56,40.24331556]
[1752765741611,7.66,173.58,173.56,46.0050118]
[1752765741787,7.66,173.58,173.57,9.28331556]
[1752765742105,7.66,173.59,173.57,9.28331556]
[1752765742420,7.66,173.6,173.58,40.24331556]
[1752765742598,7.66,173.6,173.59,9.28331556]
[1752765743122,7.66,173.59,173.58,30.96]
[1752765744419,7.66,173.59,173.58,40.24331556]
[1752765746008,7.66,173.6,173.58,49.52663112]
[1752765746217,7.66,173.6,173.59,9.28331556]
[1752765747407,7.66,173.6,173.58,30.96]
[1752765747408,7.66,173.58,173.57,26.0]
[1752765747730,7.66,173.58,173.57,66.20331556]
[1752765749337,7.69,173.59,173.57,81.24799541]
[1752765749510,7.69,173.59,173.58,18.56663112]
[1752765750032,7.69,173.59,173.58,66.20331556]
[1752765750334,7.69,173.59,173.58,75.48663112]
[1752765750806,7.69,173.59,173.58,66.20331556]
[1752765751013,8.37,173.59,173.58,9.28331556]
[1752765751422,7.69,173.59,173.58,9.28331556]
[1752765751735,7.69,173.59,173.58,24.32766349]
[1752765752048,7.69,173.59,173.58,18.56663112]
[1752765752528,7.66,173.58,173.57,56.92]